lending/lending_fUSD_20240206
["ID","MTS","AMOUNT","RATE_DAILY","PERIOD"]
[313378631,1707243078229,175.99,0.00016712,2]
[313378632,1707243100212,1900.0,0.000225,8]
[313378633,1707243138096,563.22,0.00020332,2]
[313378634,1707243152849,153.49,0.000222,2]
[313378635,1707243153037,153.49,0.00022489,2]
[313378636,1707243162533,162.39927348,0.00022499,2]
[313378637,1707243162562,191.49642264,0.00022499,2]
[313378638,1707243164364,258.03,0.00022,2]
[313378639,1707243165657,258.03,0.00022137,2]
[313378640,1707243167359,258.03,0.00022274,2]
[313378641,1707243168632,67.01285084,0.00022411,2]
[313378642,1707243168656,191.01714916,0.00022411,2]
[313378643,1707243199736,176.99,0.00022,2]
[313378647,1707243220325,664.59212432,0.0002185,2]
[313378648,1707243220351,402.92787568,0.0002185,2]
[313378649,1707243223570,250.0,0.00021918,2]
[313378650,1707243226767,177.70417391,0.00022448,2]
[313378651,1707243232700,162.51,0.00017463,2]
[313378652,1707243265388,39.45722389,0.00021811,2]
[313378653,1707243265412,1032.59927348,0.00021811,2]
[313378654,1707243265435,1032.59927348,0.00021811,2]
[313378655,1707243265457,1032.59927348,0.00021811,2]
[313378656,1707243265480,1032.59927348,0.00021811,2]
[313378657,1707243265504,10032.59927348,0.00021811,2]
[313378658,1707243265527,9697.54640871,0.00021811,2]
[313378659,1707243273144,335.05286477,0.00022495,2]
[313378660,1707243273180,10032.59927348,0.00022495,2]
[313378661,1707243273205,9140.11846175,0.00022495,2]
[313378662,1707243273729,250.0,0.00021818,2]
[313378663,1707243276499,642.48081173,0.00021818,2]
[313378664,1707243276522,1357.51918827,0.00021818,2]
[313378665,1707243303461,150.0,0.00021818,2]
[313378666,1707243324002,794.71129512,0.00022496,2]
[313378667,1707243325214,200.0,0.00022384,2]
[313378668,1707243330581,2975.1026,0.00022495,2]
[313378669,1707243389856,323.8088,0.00022496,2]
[313378670,1707243398192,175.13,0.00021843,10]
[313378671,1707243399544,200.0,0.00021808,2]
[313378672,1707243402794,150.0,5e-05,120]
[313378673,1707243415487,2406.21,0.000218,2]
[313378674,1707243442902,1316.33,0.00021808,2]
[313378675,1707243465291,133.78739009,0.00021808,2]
[313378676,1707243465318,66.21260991,0.00021808,2]
[313378677,1707243497995,750.0,0.00021817,2]
[313378678,1707243504164,200.0,0.00021817,2]
[313378679,1707243562060,1826.89,0.00021808,2]
[313378680,1707243566037,153.45,0.00021972,2]
[313378681,1707243566287,153.45,0.00022353,2]
[313378682,1707243607828,573.8,0.00021918,2]
[313378683,1707243615000,500.0,0.00021815,2]
[313378684,1707243629096,500.0,0.00021831,2]
[313378685,1707243667787,250.0,0.00021918,2]
[313378686,1707243672581,163.85,0.00021822,2]
[313378687,1707243674628,585.7,0.00019904,2]
[313378688,1707243674923,585.7,0.00022168,2]
[313378689,1707243692752,162.51,0.00017458,2]
[313378690,1707243729238,2000.0,0.00021822,2]
[313378691,1707243736171,150.0,0.00021822,2]
[313378692,1707243783388,258.03,0.00022,2]
[313378693,1707243784693,258.03,0.00022137,2]
[313378694,1707243785978,258.03,0.00022274,2]
[313378695,1707243787285,258.03,0.00022411,2]
[313378696,1707243794203,378.91666357,0.00022495,2]
[313378697,1707243794227,316.45571966,0.00022495,2]
[313378698,1707243806868,9716.14355382,0.00021799,2]
[313378699,1707243806894,10032.59927348,0.00021799,2]
[313378700,1707243806921,1032.59927348,0.00021799,2]
[313378701,1707243806944,1032.59927348,0.00021799,2]
[313378702,1707243806969,2086.05862574,0.00021799,2]
[313378703,1707243812084,1069.83228982,0.00022381,2]
[313378704,1707243813750,176.99,0.00022,2]
[313378705,1707243832964,250.0,0.00021804,2]
[313378706,1707243841600,150.0,0.00022,2]
[313378707,1707243858430,2269.27,0.00021832,2]
[313378708,1707243863244,200.0,0.00021824,2]
[313378709,1707243868712,1996.8931,0.00022444,2]
[313378710,1707243893108,311.35907807,0.00022503,2]
[313378711,1707243896515,22700.71979268,0.00022503,2]
[313378712,1707243901841,527.17332488,0.00022503,2]
[313378713,1707243910310,203.86229138,0.00022503,2]
[313378714,1707243910513,4837.81467766,0.0002228,2]
[313378715,1707243920953,200.0,0.00021824,2]
[313378716,1707243933835,1859.55887449,0.00022503,2]
[313378717,1707243934634,1069.83228982,0.00022499,2]
[313378718,1707243935376,2328.75332884,0.00022503,2]
[313378719,1707243936394,1000.0,0.00021854,2]
[313378720,1707243942482,204.15647518,0.00022503,2]
[313378721,1707243955782,10537.74486602,0.00022502,2]
[313378722,1707244021861,150.0,0.00022502,2]
[313378723,1707244022058,300.0,0.00022502,2]
[313378724,1707244022347,150.0,0.00022502,2]
[313378725,1707244024668,152.91,0.00022047,2]
[313378726,1707244040167,-428.61362,0.00022503,2]
[313378727,1707244049932,2400.0,0.000225,8]
[313378728,1707244058502,154.79833998,0.00022403,2]
[313378729,1707244063495,154.79833993,0.00022474,2]
[313378730,1707244083184,1613.79,0.00021839,2]
[313378731,1707244090787,150.0,0.00022,2]
[313378732,1707244093454,899.8,0.00021828,2]
[313378733,1707244120044,162.86822791,0.00022502,2]
[313378734,1707244153591,150.0,0.00021827,2]
[313378735,1707244162190,-1415.27636351,0.00022503,2]
[313378736,1707244162210,-1833.17502045,0.00022503,2]
[313378737,1707244162229,-6786.25267027,0.00022503,2]
[313378738,1707244167188,-277.00116709,0.00022503,2]
[313378739,1707244167208,-162.73494807,0.00022503,2]
[313378740,1707244167227,-5953.69726288,0.00022504,2]
[313378741,1707244201706,150.0,0.00022503,2]
[313378742,1707244202331,531.93,0.00022849,14]
[313378743,1707244203438,558.5,0.0001991,2]
[313378744,1707244203674,558.5,0.00022173,2]
[313378771,1707244231344,-204.15647518,0.00022503,2]
[313378772,1707244231354,-203.39653031,0.00022505,2]
[313378773,1707244231363,-731.97994428,0.00022505,2]
[313378774,1707244231373,-769.2989068,0.00022505,2]
[313378775,1707244231382,-155.0,0.00022505,2]
[313378776,1707244231391,-367.61149767,0.00022505,2]
[313378777,1707244231404,-45.9395082,0.00022505,2]
[313378778,1707244231413,-311.87330778,0.00022505,2]
[313378779,1707244231422,-275.40092461,0.00022505,2]
[313378780,1707244231431,-1406.21419992,0.00022505,2]
[313378781,1707244231440,-38714.86697165,0.00022505,2]
[313378782,1707244231450,-1606.0,0.0002254,2]
[313378783,1707244231459,-245.73459535,0.00022542,2]
[313378784,1707244231468,-419.59459495,0.00022542,2]
[313378785,1707244231477,-206.61256368,0.00022542,2]
[313378786,1707244231486,-162.52247527,0.00022542,2]
[313378787,1707244231495,-191.63858603,0.00022543,2]
[313378788,1707244231504,-19590.89289424,0.00022544,2]
[313378789,1707244231516,-973.32883742,0.00022544,2]
[313378790,1707244231528,-407.53,0.00022544,2]
[313378791,1707244231539,-639.29473813,0.00022544,2]
[313378792,1707244231551,-278.60878409,0.00022544,2]
[313378793,1707244231562,-2163.55,0.00022544,2]
[313378794,1707244231574,-11080.29459186,0.00022544,2]
[313378795,1707244231586,-3093.94265419,0.00022544,2]
[313378796,1707244231597,-1000.0,0.00022544,2]
[313378797,1707244231609,-601.42389288,0.00022544,2]
[313378798,1707244231620,-2470.0,0.00022544,2]
[313378799,1707244231632,-1003.29,0.00022544,2]
[313378800,1707244231643,-41222.10508229,0.00022544,2]
[313378801,1707244231673,-2435.67221305,0.00022544,2]
[313378802,1707244231685,-88838.67232224,0.00022544,2]
[313378803,1707244231694,-154.79833993,0.00022545,2]
[313378804,1707244231703,-2852.33449716,0.00022546,2]
[313378805,1707244231713,-6783.95,0.00022548,2]
[313378806,1707244231722,-258.03,0.00022548,2]
[313378807,1707244231732,-176.99,0.00022548,2]
[313378808,1707244231741,-150.0,0.00022548,2]
[313378809,1707244231750,-103894.14716172,0.00022595,2]
[313378810,1707244231760,-4800.0,0.000226,8]
[313378811,1707244231769,-154.79833993,0.00022616,2]
[313378812,1707244231779,-152.91,0.00022621,2]
[313378813,1707244231788,-258.03,0.00022685,2]
[313378814,1707244231797,-447.98,0.00022685,2]
[313378815,1707244231807,-154.79833993,0.00022687,2]
[313378816,1707244231816,-7200.0,0.000227,8]
[313378817,1707244231825,-154.79833993,0.00022758,2]
[313378818,1707244231836,-3599.52020434,0.0002277,2]
[313378819,1707244231845,-150.0,0.00022793,2]
[313378820,1707244231854,-728.99082072,0.00022798,2]
[313378821,1707244231864,-3646.41727852,0.00022798,2]
[313378822,1707244231877,-242.47664776,0.00022798,2]
[313378823,1707244231886,-292.10655255,0.00022798,2]
[313378824,1707244231896,-1251.1161454,0.00022798,2]
[313378825,1707244231905,-9331.63377969,0.000228,8]
[313378826,1707244232081,-268.36622031,0.000228,8]
[313378827,1707244232091,-258.03,0.00022822,2]
[313378828,1707244232100,-154.79833993,0.00022829,2]
[313378829,1707244232109,-150.0,0.00022882,2]
[313378830,1707244232118,-383.97991713,0.00022882,2]
[313378831,1707244232127,-155.69363516,0.00022882,2]
[313378832,1707244232136,-155.78766469,0.00022882,2]
[313378833,1707244232146,-282.08995367,0.00022882,2]
[313378834,1707244232154,-155.6573906,0.00022882,2]
[313378835,1707244232164,-235.5313728,0.00022882,2]
[313378836,1707244232173,-1419.26339744,0.00022882,2]
[313378837,1707244232182,-375.1126612,0.00022882,2]
[313378838,1707244232192,-160.69080403,0.00022882,2]
[313378839,1707244232201,-516.12024107,0.00022882,2]
[313378840,1707244232210,-308.24034529,0.00022882,2]
[313378841,1707244232219,-155.19708348,0.00022882,2]
[313378842,1707244232227,-155.0,0.00022883,2]
[313378843,1707244232237,-160.94007495,0.00022883,2]
[313378844,1707244232246,-326.59977459,0.00022883,2]
[313378845,1707244232255,-155.0,0.00022884,2]
[313378846,1707244232264,-197.98396535,0.00022898,2]
[313378847,1707244232273,-197.98396533,0.00022899,2]
[313378848,1707244232282,-197.98396533,0.00022899,2]
[313378849,1707244232291,-197.98396533,0.000229,2]
[313378850,1707244232301,-165.91201126,0.000229,2]
[313378851,1707244232309,-195.10400093,0.000229,2]
[313378852,1707244232318,-154.79833993,0.000229,2]
[313378853,1707244232327,-197.98396533,0.000229,2]
[313378854,1707244232337,-405.4518073,0.000229,2]
[313378855,1707244232346,-12000.0,0.000229,8]
[313378856,1707244232355,-150.0,0.00022905,2]
[313378857,1707244232364,-150.0,0.0002291,2]
[313378858,1707244232374,-899.8,0.00022919,2]
[313378859,1707244232382,-258.03,0.00022959,2]
[313378860,1707244232391,-150.0,0.00022969,2]
[313378861,1707244232400,-151.12841012,0.00022988,2]
[313378862,1707244232409,-974.75554558,0.00022998,2]
[313378863,1707244232421,-250.0,0.00022998,2]
[313378864,1707244232432,-4805.83630706,0.00022998,2]
[313378865,1707244232446,-311.44051922,0.00022998,2]
[313378866,1707244232466,-4302.67886653,0.00022998,2]
[313378867,1707244232477,-1569.04540712,0.00022998,2]
[313378868,1707244232488,-770.0,0.00022998,2]
[313378869,1707244232503,-254.21000005,0.00022998,2]
[313378870,1707244232514,-311.08000015,0.00022998,2]
[313378871,1707244232526,-409.47900183,0.00022998,2]
[313378872,1707244232537,-272.72700117,0.00022998,2]
[313378873,1707244232548,-292992.20401258,0.00022998,2]
[313378874,1707244232560,-605.0,0.00022998,2]
[313378875,1707244232573,-10118.27873128,0.00022998,2]
[313378876,1707244232585,-5874.16008826,0.00022998,2]
[313378899,1707244238415,-6457.43240327,0.00022998,2]
[313378900,1707244238473,-1670.64200239,0.00022998,2]
[313378901,1707244238484,-307.60963438,0.00022998,2]
[313378902,1707244238495,-275.96458678,0.00022998,2]
[313378903,1707244238506,-4875.91816058,0.00022998,2]
[313378904,1707244238518,-4979.68399983,0.00022998,2]
[313378905,1707244238529,-5000.5188135,0.00022998,2]
[313378906,1707244238540,-998.80882928,0.00022998,2]
[313378907,1707244238586,-73772.67781443,0.00022998,2]
[313378908,1707244238598,-32348.6651359,0.00022998,2]
[313378909,1707244238610,-21237.62500295,0.00022998,2]
[313378910,1707244238621,-32013.63879292,0.00022998,2]
[313378911,1707244238630,-10864.93651832,0.00022998,2]
[313378912,1707244238640,-487.99435337,0.00022998,2]
[313378913,1707244238649,-1047.28946763,0.00022998,2]
[313378914,1707244238658,-200.45944243,0.00022998,2]
[313378915,1707244238667,-157.76612977,0.00022998,2]
[313378916,1707244238676,-218.46793198,0.00022998,2]
[313378917,1707244238685,-342.81727514,0.00022998,2]
[313378918,1707244238694,-155.0,0.00022998,2]
[313378919,1707244238703,-655.21645281,0.00022998,2]
[313378920,1707244238713,-473.54978766,0.00022998,2]
[313378921,1707244238722,-1812.62303913,0.00022998,2]
[313378922,1707244238731,-1050.70548747,0.00022999,2]
[313378923,1707244238740,-1140.68860112,0.00022999,2]
[313378924,1707244238749,-155.0,0.00022999,2]
[313378925,1707244238758,-570.77940493,0.00022999,2]
[313378926,1707244238767,-492.03692539,0.00022999,2]
[313378927,1707244238776,-279.91036849,0.00022999,2]
[313378928,1707244238785,-161.07757259,0.00022999,2]
[313378929,1707244238794,-500.0,0.00022999,2]
[313378930,1707244238804,-210.90590581,0.00022999,2]
[313378931,1707244238813,-429.16535801,0.00022999,2]
[313378932,1707244238822,-71487.92123938,0.00023,2]
[313378933,1707244238833,-40865.24291392,0.00023,2]
[313378934,1707244238866,-1e-08,0.00023,2]
[313378936,1707244238880,-1118.03028538,0.00023,2]
[313378939,1707244238902,-0.11752936,0.00023,2]
[313378941,1707244238914,-20069.06557788,0.00023,2]
[313378944,1707244238934,-3896317.69315537,0.00023,2]
[313378945,1707244238942,-2000.0,0.00023,2]
[313378946,1707244238953,-200.0,0.00023,2]
[313378947,1707244238962,-290.4,0.00023,2]
[313378948,1707244238971,-176.99,0.00023096,2]
[313378949,1707244238980,-150.0,0.00023096,2]
[313378950,1707244238989,-1069.83228982,0.00023141,2]
[313378951,1707244238999,-152.91,0.00023195,2]
[313378952,1707244239008,-2000.0,0.0002323,2]
[313378953,1707244239017,-200.0,0.0002323,2]
[313378954,1707244239026,-163.85,0.00023381,2]
[313378955,1707244239035,-2000.0,0.00023462,2]
[313378956,1707244239044,-200.0,0.00023462,2]
[313378957,1707244239053,-2269.27,0.00023476,2]
[313378958,1707244239062,-176.99,0.00023644,2]
[313378959,1707244239071,-150.0,0.00023644,2]
[313378960,1707244239079,-2000.0,0.00023697,2]
[313378961,1707244239089,-1624.18294717,0.00023934,2]
[313378962,1707244239098,-201.89660623,0.00024,2]
[313378963,1707244239107,-899.8,0.00024011,2]
[313378964,1707244239117,-176.99,0.00024192,2]
[313378965,1707244239126,-150.0,0.00024192,2]
[313378966,1707244239135,-6783.88,0.00024384,2]
[313378967,1707244239144,-177.2,0.00024384,2]
[313378968,1707244239153,-558.5,0.00024437,2]
[313378969,1707244239162,-1000.0,0.00024586,2]
[313378970,1707244239171,-150.0,0.0002464,2]
[313378971,1707244239180,-150.0,0.0002464,2]
[313378972,1707244239189,-150.0,0.0002464,2]
[313378973,1707244239198,-150.0,0.0002464,2]
[313378974,1707244239207,-150.0,0.0002464,2]
[313378976,1707244239216,-150.0,0.0002464,2]
[313378978,1707244239225,-250.0,0.00024658,2]
[313378979,1707244239234,-176.99,0.0002474,2]
[313378981,1707244239243,-150.0,0.0002474,2]
[313378982,1707244239251,-163.85,0.00024939,2]
[313378983,1707244239260,-1254.49179591,0.00025,2]
[313378985,1707244239269,-1907.0887071,0.00025,2]
[313378986,1707244239278,-937.18611161,0.00025,2]
[313378987,1707244239287,-202.85936825,0.00025,2]
[313378988,1707244239296,-1589.9743297,0.00025,2]
[313378989,1707244239305,-304.58743218,0.00025,2]
[313378990,1707244239314,-168.0547895,0.00025,2]
[313378991,1707244239323,-350.0,0.00025,3]
[313378992,1707244239332,-899.8,0.00025102,2]
[313378993,1707244239341,-2269.27,0.00025119,2]
[313378994,1707244239350,-176.99,0.00025288,2]
[313378995,1707244239359,-176.99,0.00025836,2]
[313378996,1707244239368,-150.0,0.00026079,2]
[313378997,1707244239377,-899.8,0.00026194,2]
[313378998,1707244239386,-350.66,0.00026384,2]
[313378999,1707244239395,-163.85,0.00026498,2]
[313379000,1707244239404,-558.5,0.00026701,2]
[313379001,1707244239413,-2269.27,0.00026763,2]
[313379002,1707244239422,-400.0,0.00027,3]
[313379003,1707244239431,-1000.0,0.00027318,2]
[313379004,1707244239439,-155.0,0.00027397,2]
[313379005,1707244239448,-63695.0,0.00027397,4]
[313379006,1707244239457,-150.0,0.0002748,2]
[313379007,1707244239466,-691.57738315,0.00028,2]
[313379008,1707244239476,-4060.437159,0.00028,2]
[313379009,1707244239485,-163.85,0.00028057,2]
[313379010,1707244239495,-2269.27,0.00028407,2]
[313379011,1707244239504,-155.0,0.00028767,2]
[313379012,1707244239513,-19555.0,0.000289,2]
[313379013,1707244239522,-558.5,0.00028965,2]
[313379014,1707244239531,-450.0,0.00029,3]
[313379015,1707244239540,-366.23585006,0.000295,2]
[313379016,1707244239549,-163.85,0.00029616,2]
[313379017,1707244239558,-176.13214682,0.000298,2]
[313379018,1707244239567,-155.0,0.0003,2]
[313379019,1707244239576,-585.09173402,0.0003,2]
[313379020,1707244239585,-9678.59852311,0.0003,2]
[313379021,1707244239595,-171.06642635,0.0003,4]
[313379022,1707244239604,-8866.1862363,0.0003,4]
[313379023,1707244239613,-279.59839167,0.0003,2]
[313379024,1707244239622,-3000.0,0.0003,2]
[313379025,1707244239632,-3000.0,0.0003,2]
[313379026,1707244239641,-3000.0,0.0003,2]
[313379027,1707244239650,-3000.0,0.0003,2]
[313379028,1707244239659,-3000.0,0.0003,2]
[313379029,1707244239669,-3000.0,0.0003,2]
[313379030,1707244239678,-175.77019055,0.0003,2]
[313379031,1707244239686,-175.77019055,0.0003,2]
[313379032,1707244239695,-175.77019055,0.0003,2]
[313379033,1707244239705,-175.77019055,0.0003,2]
[313379034,1707244239714,-175.77019055,0.0003,2]
[313379035,1707244239723,-175.77019055,0.0003,2]
[313379036,1707244239732,-175.77019055,0.0003,2]
[313379037,1707244239741,-175.77019055,0.0003,2]
[313379038,1707244239750,-175.77019055,0.0003,2]
[313379039,1707244239759,-175.77019055,0.0003,2]
[313379040,1707244239768,-175.77019055,0.0003,2]
[313379041,1707244239777,-175.77019055,0.0003,2]
[313379042,1707244239786,-175.77019055,0.0003,2]
[313379043,1707244239795,-175.77019055,0.0003,2]
[313379045,1707244239804,-175.77019055,0.0003,2]
[313379046,1707244239813,-175.77019055,0.0003,2]
[313379048,1707244239822,-175.77019055,0.0003,2]
[313379049,1707244239831,-175.77019055,0.0003,2]
[313379050,1707244239840,-175.77019055,0.0003,2]
[313379051,1707244239849,-175.77019055,0.0003,2]
[313379052,1707244239858,-175.77019055,0.0003,2]
[313379053,1707244239869,-175.77019055,0.0003,2]
[313379054,1707244239882,-175.77019055,0.0003,2]
[313379055,1707244239891,-175.77019055,0.0003,2]
[313379056,1707244239900,-175.77019055,0.0003,2]
[313379058,1707244239909,-175.77019055,0.0003,2]
[313379059,1707244239918,-175.77019055,0.0003,2]
[313379060,1707244239927,-175.77019055,0.0003,2]
[313379061,1707244239937,-175.77019055,0.0003,2]
[313379062,1707244239945,-175.77019055,0.0003,2]
[313379063,1707244239955,-1000.0,0.00030049,2]
[313379064,1707244239965,-2269.27,0.00030051,2]
[313379065,1707244239975,-150.0,0.00030137,2]
[313379066,1707244239983,-150.0,0.0003022,2]
[313379067,1707244239992,-1613.79,0.00030574,2]
[313379068,1707244240001,-150.0,0.00030714,2]
[313379069,1707244240010,-500.0,0.00031,3]
[313379070,1707244240019,-163.85,0.00031174,2]
[313379071,1707244240028,-558.5,0.00031229,2]
[313379072,1707244240037,-150.0,0.00031291,2]
[313379073,1707244240046,-23092.64761534,0.0003139,5]
[313379074,1707244240055,-495.00957265,0.000314,30]
[313379075,1707244240064,-180.0,0.00031644,2]
[313379076,1707244240074,-150.0,0.00031867,2]
[313379077,1707244240083,-13138.69387999,0.00032,4]
[313379078,1707244240093,-8961.491975,0.00032,4]
[313379079,1707244240102,-150.0,0.00032444,2]
[313379080,1707244240111,-163.85,0.00032733,2]
[313379081,1707244240120,-164.030404,0.00032757,2]
[313379082,1707244240129,-597.929077,0.00032757,2]
[313379083,1707244240138,-356.883868,0.00032757,2]
[313379084,1707244240147,-168.680137,0.00032757,2]
[313379085,1707244240156,-483.0,0.00032767,5]
[313379086,1707244240165,-1000.0,0.00032781,2]
[313379087,1707244240174,-210.55949341,0.0003296,2]
[313379088,1707244240183,-1980.57619888,0.00033,2]
[313379089,1707244240192,-550.0,0.00033,3]
[313379090,1707244240201,-150.0,0.00033021,2]
[313379091,1707244240210,-1000.0,0.00033151,120]
[313379092,1707244240219,-597.929077,0.00033167,2]
[313379093,1707244240228,-356.883868,0.00033167,2]
[313379094,1707244240237,-168.680137,0.00033303,2]
[313379095,1707244240246,-164.030404,0.00033303,2]
[313379096,1707244240255,-405.45180728,0.00033481,2]
[313379097,1707244240264,-558.5,0.00033493,2]
[313379098,1707244240273,-597.929077,0.00033576,2]
[313379099,1707244240282,-356.883868,0.00033576,2]
[313379100,1707244240291,-150.0,0.00033598,2]
[313379101,1707244240300,-168.680137,0.00033849,2]
[313379102,1707244240309,-164.030404,0.00033849,2]
[313379103,1707244240319,-152.35886735,0.000339,2]
[313379104,1707244240328,-152.35886704,0.000339,2]
[313379105,1707244240337,-152.35886704,0.000339,2]
[313379106,1707244240346,-152.35886704,0.000339,2]
[313379107,1707244240355,-152.35886704,0.000339,2]
[313379108,1707244240364,-152.35886704,0.000339,2]
[313379109,1707244240373,-152.35886704,0.000339,2]
[313379110,1707244240382,-152.35886704,0.000339,2]
[313379111,1707244240391,-152.35886704,0.000339,2]
[313379112,1707244240401,-152.35886704,0.000339,2]
[313379113,1707244240410,-152.35886704,0.000339,2]
[313379114,1707244240419,-152.35886704,0.000339,2]
[313379115,1707244240428,-597.929077,0.00033985,2]
[313379116,1707244240437,-356.883868,0.00033985,2]
[313379117,1707244240446,-766.27755389,0.00034,4]
[313379118,1707244240455,-152.35886704,0.0003401,2]
[313379119,1707244240464,-150.0,0.00034175,2]
[313379120,1707244240473,-597.929077,0.00034395,2]
[313379121,1707244240482,-356.883868,0.00034395,2]
[313379122,1707244240491,-168.680137,0.00034395,2]
[313379123,1707244240500,-164.030404,0.00034395,2]
[313379124,1707244240509,-150.0,0.00034751,2]
[313379125,1707244240518,-9114.1661631,0.000349,4]
[313379126,1707244240527,-939.0984023,0.000349,2]
[313379127,1707244240634,-939.09840211,0.000349,2]
[313379128,1707244240644,-939.09840211,0.000349,2]
[313379129,1707244240653,-939.09840211,0.000349,2]
[313379130,1707244240663,-939.09840211,0.000349,2]
[313379131,1707244240673,-939.09840211,0.000349,2]
[313379132,1707244240682,-939.09840211,0.000349,2]
[313379133,1707244240691,-939.09840211,0.000349,2]
[313379134,1707244240701,-152.35886704,0.00034935,2]
[313379135,1707244240710,-155.0,0.00035,2]
[313379136,1707244240719,-155.0,0.00035,2]
[313379137,1707244240728,-7492.53049459,0.00035,7]
[313379138,1707244240737,-185.07465124,0.00035,2]
[313379139,1707244240746,-162.33691521,0.00035,2]
[313379140,1707244240755,-600.0,0.00035,3]
[313379141,1707244240765,-20769.44410711,0.00035,2]
[313379142,1707244240774,-150.0,0.00035328,2]
[313379143,1707244240783,-939.09840211,0.0003553,2]
[313379144,1707244240792,-6783.88,0.00035616,2]
[313379145,1707244240801,-8692.88,0.00035616,2]
[313379146,1707244240811,-558.5,0.00035757,2]
[313379147,1707244240820,-152.35886704,0.00035861,2]
[313379148,1707244240830,-2400.0,0.000359,13]
[313379149,1707244240840,-150.0,0.00035905,2]
[313379150,1707244240849,-150.0,0.00035999,2]
[313379151,1707244240858,-150.0,0.00035999,2]
[313379152,1707244240872,-578521.87220328,0.00036,30]
[313379153,1707244240881,-2106.38139839,0.00036301,30]
[313379154,1707244240890,-166.24,0.00036438,2]
[313379155,1707244240899,-150.0,0.00036482,2]
[313379156,1707244240909,-50368.95812782,0.0003649,10]
[313379157,1707244240918,-297.41751802,0.0003668,30]
[313379158,1707244240927,-152.35886704,0.00036787,2]
[313379159,1707244240936,-200.0,0.00036853,5]
[313379160,1707244240945,-8692.88,0.00036934,2]
[313379161,1707244240956,-650.0,0.00037,3]
[313379162,1707244240965,-150.0,0.00037059,2]
[313379163,1707244240973,-939.09840211,0.00037109,2]
[313379164,1707244240982,-1000.0,0.000373,2]
[313379165,1707244240991,-150.0,0.00037635,2]
[313379166,1707244241000,-154.49,0.000377,3]
[313379167,1707244241009,-152.35886704,0.00037713,2]
[313379168,1707244241017,-702.55780236,0.00037738,4]
[313379169,1707244241026,-3250.6,0.00037873,2]
[313379170,1707244241035,-646300.222367,0.000379,3]
[313379171,1707244241044,-96633.84809118,0.00038,2]
[313379172,1707244241053,-558.5,0.00038021,2]
[313379173,1707244241061,-150.0,0.00038212,2]
[313379174,1707244241070,-8692.88,0.00038252,2]
[313379175,1707244241079,-150.0,0.00038356,2]
[313379176,1707244241088,-300.0,0.00038356,7]
[313379177,1707244241097,-450.0,0.00038356,12]
[313379178,1707244241106,-600.0,0.00038356,17]
[313379179,1707244241115,-750.0,0.00038356,22]
[313379180,1707244241123,-566.11809492,0.00038356,27]
[313379181,1707244241133,-150.07,0.00038356,2]
[313379182,1707244241142,-152.35886704,0.00038639,2]
[313379183,1707244241151,-939.09840211,0.00038687,2]
[313379184,1707244241160,-150.0,0.00038789,2]
[313379185,1707244241169,-21438.18330583,0.000388,4]
[313379186,1707244241178,-283.09329368,0.0003898,2]
[313379187,1707244241187,-220.46095402,0.00039,5]
[313379188,1707244241197,-1433.61374358,0.00039,2]
[313379189,1707244241206,-700.0,0.00039,3]
[313379190,1707244241215,-740.33,0.0003926,2]
[313379191,1707244241224,-150.0,0.00039366,2]
[313379192,1707244241234,-2033.61012723,0.000395,4]
[313379193,1707244241243,-152.35886704,0.00039565,5]
[313379194,1707244241252,-8692.88,0.0003957,2]